fUSD/lending_fUSD_20260616
["ID","MTS","AMOUNT","RATE_DAILY","PERIOD"]
[425209553,1781583057000,-470.85,0.00011592,2]
[425209552,1781583057000,-736.0,0.00011578,2]
[425209549,1781583057000,-500.0,0.00011435,2]
[425209547,1781583057000,-154.47156715,0.00011435,2]
[425209548,1781583057000,-500.0,0.00011435,2]
[425209546,1781583057000,-500.0,0.00011435,2]
[425209592,1781583058000,-1600.0,0.00014111,2]
[425209593,1781583058000,-2782.87568605,0.00014117,2]
[425209594,1781583058000,-968.37913215,0.00014117,2]
[425209600,1781583058000,-169.88,0.0001464,2]
[425209591,1781583058000,-2129.0,0.00014014,2]
[425209588,1781583058000,-152.0,0.00013791,2]
[425209583,1781583058000,-2500.0,0.00013699,2]
[425209590,1781583058000,-586.87,0.000138,2]
[425209587,1781583058000,-152.0,0.00013791,2]
[425209586,1781583058000,-152.0,0.00013791,2]
[425209585,1781583058000,-162.0,0.00013721,2]
[425209584,1781583058000,-200.0,0.00013699,2]
[425209597,1781583058000,-86175.79,0.00014497,2]
[425209589,1781583058000,-152.0,0.00013791,2]
[425209599,1781583058000,-500.0,0.00014548,2]
[425209582,1781583058000,-500.0,0.00013698,2]
[425209596,1781583058000,-1487.83,0.00014443,2]
[425209613,1781583058000,-1707.04523986,0.000149,3]
[425209610,1781583058000,-694.55969986,0.000149,3]
[425209611,1781583058000,-1786.51401014,0.000149,3]
[425209609,1781583058000,-2979.55131342,0.000149,3]
[425209604,1781583058000,-290.01551036,0.000148,2]
[425209607,1781583058000,-1500.0,0.00014893,2]
[425209612,1781583058000,-1410.58,0.000149,3]
[425209608,1781583058000,-263091.18210249,0.000149,3]
[425209606,1781583058000,-162.0,0.00014865,2]
[425209595,1781583058000,-1000.0,0.00014249,2]
[425209601,1781583058000,-8500.0,0.000147,5]
[425209598,1781583058000,-1000.69,0.00014497,2]
[425209603,1781583058000,-968.37913215,0.000148,2]
[425209602,1781583058000,-2782.87568605,0.000148,2]
[425209605,1781583058000,-10600.0,0.000148,5]
[425209614,1781583059000,-720169.36503371,0.000149,3]
[425209616,1781583080000,-4832.51680966,8.6e-05,2]
[425209617,1781583082000,260.705587,0.000301,120]
[425209620,1781583095000,260.705591,0.000301,120]
[425209627,1781583196000,-150.0,8.599e-05,2]
[425209630,1781583251000,-1992.11169034,8.6e-05,2]
[425209633,1781583303000,-3542.2776,8.6e-05,2]
[425209634,1781583326000,-500.0,8.599e-05,2]
[425209637,1781583379000,-338.0900543,8.599e-05,2]
[425209642,1781583434000,-3607.26,8.6e-05,2]
[425209643,1781583458000,-30795.22435959,8.6e-05,2]
[425209645,1781583483000,-30795.22435959,8.6e-05,2]
[425209646,1781583505000,-150.0,8.599e-05,2]
[425209647,1781583557000,-500.0,8.599e-05,2]
[425209648,1781583617000,2244.0,0.0003,120]
[425209649,1781583644000,150.0,0.0003013,120]
[425209650,1781583829000,-150.0,8.599e-05,2]
[425209651,1781583882000,-1057.798,8.428e-05,2]
[425209652,1781583935000,-150.0,8.599e-05,2]
[425209653,1781583989000,-500.0,8.599e-05,2]
[425209654,1781584042000,-150.0,8.599e-05,2]
[425209655,1781584096000,-500.0,8.599e-05,2]
[425209656,1781584121000,1491.98,0.00029452,120]
[425209657,1781584148000,-586.66303802,8.499e-05,2]
[425209658,1781584204000,-500.0,8.499e-05,2]
[425209668,1781584232000,-881.80625,8.5e-05,2]
[425209666,1781584232000,-375.94400913,8.499e-05,2]
[425209667,1781584232000,-645.05083436,8.5e-05,2]
[425209665,1781584232000,-500.0,8.499e-05,2]
[425209720,1781584256000,-8712.89056585,8.5e-05,2]
[425209723,1781584256000,-1410.0,8.5e-05,2]
[425209721,1781584256000,-3776.35449775,8.5e-05,2]
[425209722,1781584256000,-5319.04158816,8.5e-05,2]
[425209727,1781584256000,-265.712551,8.5e-05,2]
[425209725,1781584256000,-2111.665,8.5e-05,2]
[425209728,1781584256000,-2684.55217869,8.5e-05,2]
[425209724,1781584256000,-7287.39351335,8.5e-05,2]
[425209726,1781584256000,-2142.31612176,8.5e-05,2]
[425209764,1781584257000,-13805.7,0.00012087,2]
[425209750,1781584257000,-166.66,0.00011178,2]
[425209760,1781584257000,-1000.0,0.00011501,2]
[425209749,1781584257000,-161.70042323,0.00011099,2]
[425209752,1781584257000,-359.1904335,0.0001123,2]
[425209755,1781584257000,-162.91,0.00011293,2]
[425209759,1781584257000,-175.84011022,0.0001145,2]
[425209754,1781584257000,-166.66,0.00011288,2]
[425209757,1781584257000,-162.0,0.0001138,2]
[425209758,1781584257000,-166.66,0.00011397,2]
[425209762,1781584257000,-166.66,0.00011507,2]
[425209756,1781584257000,-8217.7027865,0.00011311,2]
[425209753,1781584257000,-12516.1934748,0.00011276,2]
[425209761,1781584257000,-200.0,0.00011501,2]
[425209763,1781584257000,-161.70042323,0.0001173,2]
[425209748,1781584257000,-161.70042327,0.00011099,2]
[425209751,1781584257000,-2616.89,0.00011213,2]
[425209744,1781584257000,-150.0,0.00010959,2]
[425209743,1781584257000,-1600.0,0.000109,3]
[425209729,1781584257000,-892.18335078,8.5e-05,2]
[425209730,1781584257000,-327.17243435,8.5e-05,2]
[425209731,1781584257000,-705.39,8.5e-05,2]
[425209732,1781584257000,-764.8018764,8.5e-05,2]
[425209734,1781584257000,-860.36676655,8.5e-05,2]
[425209736,1781584257000,-33294.2563,8.8e-05,2]
[425209737,1781584257000,-500.0,8.9e-05,3]
[425209742,1781584257000,-176.54,0.00010816,2]
[425209733,1781584257000,-5615.786771,8.5e-05,2]
[425209738,1781584257000,-1000.0,9e-05,3]
[425209746,1781584257000,-150.0,0.00010979,2]
[425209747,1781584257000,-166.66,0.00011068,2]
[425209740,1781584257000,-1000.0,0.0001,2]
[425209741,1781584257000,-450.57,0.00010783,2]
[425209739,1781584257000,-1000.0,0.0001,2]
[425209745,1781584257000,-166.66,0.00010959,2]
[425209735,1781584257000,-154.76150385,8.7e-05,2]
[425209766,1781584257000,-500.0,0.00012466,2]
[425209783,1781584257000,-250.35035488,0.00014,2]
[425209769,1781584257000,-230.11628674,0.00012829,2]
[425209793,1781584257000,-634.92215492,0.000148,5]
[425209789,1781584257000,-388.0718636,0.000148,2]
[425209792,1781584257000,-257.79156476,0.000148,2]
[425209786,1781584257000,-2055.0987636,0.000147,5]
[425209791,1781584257000,-49.91372809,0.000148,2]
[425209794,1781584257000,-2065.07784508,0.000148,5]
[425209796,1781584257000,-177.54784508,0.00014827,2]
[425209790,1781584257000,-1798.77700831,0.000148,2]
[425209797,1781584257000,-500.0,0.00014878,2]
[425209798,1781584257000,-151.0,0.00014897,2]
[425209800,1781584257000,-60.04036897,0.00014899,2]
[425209801,1781584257000,-239.95963103,0.00014899,2]
[425209799,1781584257000,-300.0,0.00014899,2]
[425209765,1781584257000,-450.57,0.00012131,2]
[425209803,1781584257000,-457.04884248,0.000149,3]
[425209804,1781584257000,-273.1454,0.000149,3]
[425209795,1781584257000,-273.02215492,0.00014827,2]
[425209785,1781584257000,-528.18,0.000145,2]
[425209802,1781584257000,-223.56924846,0.000149,3]
[425209788,1781584257000,-181.99,0.0001478,2]
[425209767,1781584257000,-2000.0,0.0001271,2]
[425209771,1781584257000,-464.04483294,0.0001295,2]
[425209768,1781584257000,-504.22235444,0.00012829,2]
[425209770,1781584257000,-310.20279743,0.0001295,2]
[425209773,1781584257000,-500.0,0.00013009,2]
[425209784,1781584257000,-734.33864118,0.00014122,2]
[425209774,1781584257000,-161.70042323,0.00013315,2]
[425209775,1781584257000,-450.57,0.00013479,2]
[425209772,1781584257000,-627.8679,0.0001295,2]
[425209779,1781584257000,-500.0,0.00013698,2]
[425209781,1781584257000,-200.0,0.00013699,2]
[425209777,1781584257000,-500.0,0.00013698,2]
[425209782,1781584257000,-250.0,0.00014,2]
[425209776,1781584257000,-500.0,0.00013698,2]
[425209780,1781584257000,-393.81,0.00013698,2]
[425209787,1781584257000,-44.9012364,0.000147,5]
[425209778,1781584257000,-497.26,0.00013698,2]
[425209805,1781584258000,-314.47253761,0.000149,3]
[425209806,1781584258000,-3974.98522897,0.000149,3]
[425209807,1781584258000,-327.56004162,0.000149,3]
[425209808,1781584258000,-396.39720214,0.000149,3]
[425209810,1781584258000,-464.00889155,0.000149,3]
[425209809,1781584258000,-398.72390016,0.000149,3]
[425209812,1781584258000,-407.37972278,0.000149,3]
[425209813,1781584258000,-6500.34094114,0.000149,3]
[425209814,1781584258000,-10480.03,0.000149,3]
[425209815,1781584258000,-684.78,0.000149,3]
[425209816,1781584258000,-726.72950386,0.000149,3]
[425209811,1781584258000,-1822.49447248,0.000149,3]
[425209817,1781584261000,150.0,8.244e-05,2]
[425209818,1781584307000,2350.0,8.7e-05,2]
[425209819,1781584374000,150.0,0.00010274,75]
[425209820,1781584777000,169.06546012,0.00023102,120]
[425209821,1781585202000,619.4344,0.00030136,120]
[425209822,1781585257000,2702.59109659,0.0003013,120]
[425209823,1781585278000,-50.0,8.244e-05,2]
[425209824,1781585334000,-100.0,8.244e-05,2]
[425209825,1781585385000,-150.0,8.246e-05,2]
[425209826,1781585406000,-250.0,8.249e-05,2]
[425209827,1781585406000,-300.0,8.253e-05,2]
[425209828,1781585406000,-150.0,8.26e-05,2]
[425209829,1781585406000,-643.04038182,8.26e-05,2]
[425209830,1781585406000,-500.0,8.26e-05,2]
[425209831,1781585406000,-500.0,8.26e-05,2]
[425209833,1781585406000,-500.0,8.26e-05,2]
[425209832,1781585406000,-500.0,8.26e-05,2]
[425209834,1781585406000,-500.0,8.26e-05,2]
[425209836,1781585406000,-500.0,8.26e-05,2]
[425209835,1781585406000,-500.0,8.26e-05,2]
[425209838,1781585406000,-500.0,8.26e-05,2]
[425209839,1781585406000,-500.0,8.26e-05,2]
[425209840,1781585406000,-500.0,8.26e-05,2]
[425209841,1781585406000,-500.0,8.26e-05,2]
[425209843,1781585406000,-500.0,8.26e-05,2]
[425209842,1781585406000,-500.0,8.26e-05,2]
[425209844,1781585406000,-500.0,8.26e-05,2]
[425209845,1781585406000,-500.0,8.26e-05,2]
[425209846,1781585406000,-185.96190364,8.261e-05,2]
[425209847,1781585406000,-451.97090543,8.261e-05,2]
[425209837,1781585406000,-519.02680911,8.26e-05,2]
[425209850,1781585408000,-500.0,8.261e-05,2]
[425209848,1781585408000,-3.69322118,8.261e-05,2]
[425209849,1781585408000,-500.0,8.261e-05,2]
[425209855,1781585408000,-150.0,8.265e-05,2]
[425209851,1781585408000,-259.372313,8.261e-05,2]
[425209853,1781585408000,-300.0,8.265e-05,2]
[425209854,1781585408000,-300.0,8.265e-05,2]
[425209852,1781585408000,-2994.73985836,8.262e-05,2]
[425209857,1781585409000,-10000.0,8.3e-05,2]
[425209856,1781585409000,-4992.19460746,8.3e-05,2]
[425209858,1781585409000,-10000.0,8.3e-05,2]
[425209862,1781585409000,-800.0,8.9e-05,3]
[425209861,1781585409000,-2500.0,8.6e-05,2]
[425209860,1781585409000,-185.96190364,8.6e-05,2]
[425209859,1781585409000,-2668.24739254,8.3e-05,2]
[425209864,1781585410000,-1700.0,9e-05,3]
[425209863,1781585410000,-150.0,8.904e-05,2]
[425209866,1781585418000,-528.26272513,9.086e-05,2]
[425209865,1781585418000,-255.0,9.086e-05,2]
[425209872,1781585432000,-424.0,9.895e-05,2]
[425209871,1781585432000,-300.0,9.895e-05,2]
[425209869,1781585432000,-150.19,9.723e-05,2]
[425209870,1781585432000,-283.19480779,9.895e-05,2]
[425209873,1781585438000,-5951.41519221,9.895e-05,2]
[425209874,1781585438000,-433.0,9.995e-05,2]
[425209875,1781585438000,-381.12788105,0.0001,2]
[425209879,1781585438000,-1787.88026371,0.000109,3]
[425209877,1781585438000,-163.7,0.0001,2]
[425209878,1781585438000,-2928.95,0.00010025,2]
[425209880,1781585438000,-777.2934415,0.000109,3]
[425209876,1781585438000,-325.35918239,0.0001,2]
[425209881,1781585440000,-34.82629479,0.000109,3]
[425209885,1781585440000,-161.70042323,0.00011099,2]
[425209883,1781585440000,-150.0,0.00010959,2]
[425209884,1781585440000,-166.66,0.00011068,2]
[425209888,1781585440000,-139.52847996,0.00011113,2]
[425209886,1781585440000,-154.62311016,0.00011099,2]
[425209882,1781585440000,-166.66,0.00010959,2]
[425209889,1781585440000,-98.93047364,0.00011113,2]
[425209891,1781585440000,-2397.24011337,0.00011178,2]
[425209890,1781585440000,-152.0,0.00011113,2]
[425209887,1781585440000,-151.0,0.00011113,2]
[425209892,1781585441000,-503.44057045,0.00011178,2]
[425209893,1781585441000,-99.31931618,0.00011178,2]
[425209894,1781585441000,-166.66,0.00011178,2]
[425209897,1781585441000,-14976.96952,0.00011219,2]
[425209896,1781585441000,-31754.19848489,0.00011219,2]
[425209898,1781585441000,-407.82136975,0.00011219,2]
[425209899,1781585441000,-329.11,0.00011219,2]
[425209895,1781585441000,-49692.52068382,0.00011219,2]
[425209915,1781585443000,-692.89856981,0.00011219,2]
[425209916,1781585443000,-1961.7860614,0.00011219,2]
[425209938,1781585446000,-56850.157095,0.00011219,2]
[425209937,1781585446000,-54765.40629323,0.00011219,2]
[425209944,1781585446000,-500.0,0.00011562,2]
[425209943,1781585446000,-166.66,0.00011507,2]
[425209942,1781585446000,-166.66,0.00011397,2]
[425209941,1781585446000,-166.66,0.00011288,2]
[425209939,1781585446000,-1000.0,0.00011242,2]
[425209940,1781585446000,-780.91,0.00011272,2]
[425209946,1781585446000,-150.19,0.00012154,2]
[425209953,1781585446000,-22246.09,0.0001288,2]
[425209947,1781585446000,-747.40959156,0.00012277,2]
[425209955,1781585446000,-500.0,0.00013265,2]
[425209952,1781585446000,-193.39483347,0.00012721,2]
[425209951,1781585446000,-334.86534023,0.00012721,2]
[425209945,1781585446000,-500.0,0.00011589,2]
[425209954,1781585446000,-199.5,0.00013246,2]
[425209948,1781585446000,-500.0,0.00012411,2]
[425209950,1781585446000,-1376.24,0.00012462,2]
[425209949,1781585446000,-440.6031847,0.00012431,2]
[425209997,1781585447000,-4300.0,0.000148,5]
[425209974,1781585447000,-500.0,0.00013772,2]
[425209977,1781585447000,-250.0,0.00014,2]
[425209976,1781585447000,-737.0,0.00013772,2]
[425209975,1781585447000,-500.0,0.00013772,2]
[425209973,1781585447000,-500.0,0.00013772,2]
[425209971,1781585447000,-9999.99,0.00013699,2]
[425209960,1781585447000,-581.68077888,0.00013265,2]
[425209978,1781585447000,-5960.79,0.00014057,2]
[425209963,1781585447000,-500.0,0.00013498,2]
[425209966,1781585447000,-500.0,0.00013498,2]
[425209962,1781585447000,-500.0,0.00013479,2]
[425209964,1781585447000,-500.0,0.00013498,2]
[425209968,1781585447000,-500.0,0.00013698,2]
[425209965,1781585447000,-500.0,0.00013498,2]
[425209961,1781585447000,-440.6031847,0.00013442,2]
[425209959,1781585447000,-500.0,0.00013265,2]
[425209957,1781585447000,-500.0,0.00013265,2]
[425209969,1781585447000,-200.0,0.00013699,2]
[425209972,1781585447000,-150.99,0.00013699,2]
[425209967,1781585447000,-810.587,0.00013498,2]
[425209980,1781585447000,-200.0,0.0001439,2]
[425209979,1781585447000,-500.0,0.00014356,2]
[425209998,1781585447000,-12440.18506518,0.0001489,2]
[425209996,1781585447000,-829.3231815,0.000148,2]
[425209995,1781585447000,-12289.81010634,0.000148,2]
[425209989,1781585447000,-1500.0,0.00014786,2]
[425209988,1781585447000,-319.0,0.00014733,2]
[425209990,1781585447000,-2000.0,0.000148,2]
[425209993,1781585447000,-151.0,0.000148,2]
[425209992,1781585447000,-151.0,0.000148,2]
[425209999,1781585447000,-2580.97093578,0.0001489,2]
[425209991,1781585447000,-33294.2563,0.000148,2]
[425209994,1781585447000,-161.70042323,0.000148,2]
[425209981,1781585447000,-440.6031847,0.00014453,2]
[425209982,1781585447000,-150.19,0.00014585,2]
[425209983,1781585447000,-3500.0,0.000147,5]
[425209970,1781585447000,-186.1,0.00013699,2]
[425209985,1781585447000,-151.0,0.000147,2]
[425209984,1781585447000,-318.0,0.000147,2]
[425209986,1781585447000,-313.0,0.000147,2]
[425209987,1781585447000,-311.0,0.00014733,2]
[425210002,1781585515000,735.82143205,8.2e-05,2]
[425210003,1781585633000,360.43,0.0003,120]
[425210004,1781585656000,-318.96488863,8.199e-05,2]
[425210005,1781585709000,-500.0,8.199e-05,2]
[425210006,1781585762000,-418.33833704,8.199e-05,2]
[425210007,1781585816000,-150.0,8.2e-05,2]
[425210008,1781585869000,-223.27542204,8.199e-05,2]
[425210009,1781585923000,-2514.76,8.2e-05,2]
[425210010,1781585945000,-2500.0,8.2e-05,2]
[425210011,1781585967000,-2500.0,8.2e-05,2]
[425210013,1781585989000,-4182.1809,8.2e-05,2]
[425210014,1781586012000,-4182.1809,8.2e-05,2]
[425210016,1781586128000,151.0,0.00021657,120]
[425210017,1781586129000,151.0,0.00027136,120]
[425210018,1781586131000,151.0,0.00016177,120]
[425210019,1781586194000,-2516.4758,8.1e-05,2]
[425210020,1781586246000,-4182.5728,8.1e-05,2]
[425210021,1781586301000,-150.0,8.15e-05,2]
[425210022,1781586353000,-150.0,8.199e-05,2]
[425210023,1781586406000,-846.238,8.199e-05,2]
[425210024,1781586460000,-300.0,8.199e-05,2]
[425210025,1781586513000,-250.0,8.2e-05,2]
[425210026,1781586567000,-8712.89056585,8.1e-05,2]
[425210027,1781586589000,-8712.89056585,8.1e-05,2]
[425210028,1781586611000,-8712.89056585,8.1e-05,2]
[425210053,1781586631000,-2000.0,0.00011119,2]
[425210054,1781586631000,-166.66,0.00011156,2]
[425210051,1781586631000,-400.0,0.00011047,2]
[425210050,1781586631000,-166.66,0.00010959,2]
[425210047,1781586631000,-400.0,0.0001,3]
[425210045,1781586631000,-1413.22560665,0.0001,2]
[425210042,1781586631000,-2500.0,9.795e-05,2]
[425210043,1781586631000,-200.0,9.9e-05,3]
[425210044,1781586631000,-655.70838049,0.0001,2]
[425210049,1781586631000,-5391.23,0.00010905,2]
[425210039,1781586631000,-1890.24312821,9.019e-05,2]
[425210041,1781586631000,-726.19466561,9.04e-05,2]
[425210038,1781586631000,-300.0,9.019e-05,2]
[425210037,1781586631000,-2013.44497149,8.995e-05,2]
[425210036,1781586631000,-279.23271046,8.91e-05,2]
[425210035,1781586631000,-248.14360775,8.91e-05,2]
[425210033,1781586631000,-300.0,8.241e-05,2]
[425210034,1781586631000,-300.0,8.241e-05,2]
[425210032,1781586631000,-381.5606191,8.219e-05,2]
[425210030,1781586631000,-44436.19370245,8.1e-05,2]
[425210031,1781586631000,-500.0,8.219e-05,2]
[425210040,1781586631000,-500.0,9.019e-05,2]
[425210060,1781586631000,-166.66,0.00011552,2]
[425210046,1781586631000,-150.06,0.0001,2]
[425210056,1781586631000,-166.66,0.00011354,2]
[425210086,1781586631000,-3612.47,0.00013517,2]
[425210085,1781586631000,-168.74,0.00013377,2]
[425210083,1781586631000,-1413.22560664,0.00013004,2]
[425210087,1781586631000,-27689.61975832,0.00013527,2]
[425210052,1781586631000,-33294.2563,0.00011119,2]
[425210082,1781586631000,-600.0,0.000129,4]
[425210080,1781586631000,-151.0,0.00012776,2]
[425210081,1781586631000,-3612.47,0.0001288,2]
[425210079,1781586631000,-310.0,0.00012776,2]
[425210078,1781586631000,-151.0,0.00012776,2]
[425210073,1781586631000,-176.24127388,0.0001268,2]
[425210084,1781586631000,-176.24127388,0.00013235,2]
[425210071,1781586631000,-232485.0,0.00012595,2]
[425210077,1781586631000,-128358.6634082,0.00012765,2]
[425210058,1781586631000,-486.6345,0.00011487,2]
[425210061,1781586631000,-655.5266008,0.00011664,2]
[425210063,1781586631000,-150.0,0.00011788,2]
[425210062,1781586631000,-166.66,0.00011749,2]
[425210048,1781586631000,-1000.0,0.00010646,2]
[425210067,1781586631000,-162.03,0.00011955,2]
[425210068,1781586631000,-400.0,0.00012428,2]
[425210066,1781586631000,-166.66,0.00011947,2]
[425210070,1781586631000,-2787.0,0.00012564,5]
[425210075,1781586631000,-186.47678224,0.00012765,2]
[425210093,1781586639000,-529.80780789,0.0001258,2]
[425210094,1781586640000,-151.83331222,0.0001258,2]
[425210095,1781586640000,-14947.99806288,0.00013527,2]
[425210097,1781586640000,-50072.34895254,0.00013608,2]
[425210096,1781586640000,-151.0,0.00013527,2]
[425210109,1781586642000,-9889.89669997,0.00013608,2]
[425210108,1781586642000,-316.0,0.00013527,2]
[425210107,1781586642000,-151.0,0.00013527,2]
[425210106,1781586642000,-150.0,0.00013527,2]
[425210138,1781586646000,-1590.76405054,0.00013608,2]
[425210137,1781586646000,-3644.0,0.00013608,2]
[425210142,1781586774000,-500.0,8.099e-05,2]
[425210143,1781586783000,362.7,0.0003013,120]
[425210144,1781586798000,360.0,0.0003013,120]
[425210145,1781586829000,-500.0,8e-05,2]
[425210146,1781586881000,-500.0,8.098e-05,2]
[425210147,1781586936000,-162.0,8.096e-05,2]
[425210149,1781586988000,1970.0,0.00028767,120]
[425210148,1781586988000,-500.0,8.097e-05,2]
[425210150,1781587041000,-500.0,8.096e-05,2]
[425210151,1781587096000,-200.0,8.096e-05,2]
[425210152,1781587148000,-300.0,8.095e-05,2]
[425210153,1781587203000,-500.0,8.095e-05,2]
[425210154,1781587255000,-150.0,8.096e-05,2]
[425210155,1781587513000,-606.29279543,7.999e-05,2]
[425210156,1781587567000,-266.38959435,7.999e-05,2]
[425210157,1781587620000,-500.0,7.999e-05,2]
[425210158,1781587639000,168.74,0.00028973,120]
[425210159,1781587673000,-300.0,7.999e-05,2]
[425210160,1781587694000,1247.15852596,0.0003,120]
[425210161,1781587727000,-620.0,7.999e-05,2]
[425210162,1781587780000,-500.0,7.999e-05,2]
[425210193,1781587834000,-150.0,7.999e-05,2]
[425210194,1781587836000,-250.0,8e-05,2]
[425210196,1781587836000,-1246.48,8e-05,2]
[425210198,1781587836000,-424.63898139,8e-05,2]
[425210197,1781587836000,-2166.12004583,8e-05,2]
[425210195,1781587836000,-278.20860877,8e-05,2]
[425210258,1781587845000,-2588.22522287,8e-05,2]
[425210261,1781587846000,-1406.69389531,8e-05,2]
[425210260,1781587846000,-1285.8807777,8e-05,2]
[425210259,1781587846000,-1091.55639,8e-05,2]
[425210262,1781587887000,-259.34954441,7.999e-05,2]
[425210264,1781587920000,951.44,0.000301,120]
[425210265,1781587940000,-166.62,7.932e-05,2]
[425210266,1781587995000,-5974.87956217,8e-05,2]
[425210267,1781588151000,-3277.1602,7.9e-05,2]
[425210273,1781588151000,-23689.78335578,8e-05,2]
[425210272,1781588151000,-186.47271605,7.999e-05,2]
[425210271,1781588151000,-180.0,7.999e-05,2]
[425210270,1781588151000,-482.79552517,7.999e-05,2]
[425210269,1781588151000,-150.0,7.972e-05,2]
[425210268,1781588151000,-403.788203,7.945e-05,2]
[425210274,1781588203000,-150.0,7.999e-05,2]
[425210275,1781588227000,-5974.87956217,8e-05,2]
[425210276,1781588257000,-9340.22,8e-05,2]
[425210277,1781588280000,-9340.22,8e-05,2]
[425210278,1781588322000,-5974.87956217,8e-05,2]
[425210279,1781588363000,-5974.87956217,8e-05,2]
[425210280,1781588365000,-5974.87956217,8e-05,2]
[425210281,1781588407000,-5974.87956217,8e-05,2]
[425210282,1781588449000,-1350.10040483,8e-05,2]
[425210283,1781588491000,-1350.10040483,8e-05,2]
[425210284,1781588513000,-1350.10040483,8e-05,2]
[425210285,1781588515000,-1350.10040483,8e-05,2]
[425210287,1781588516000,-7579.90061405,8e-05,2]
[425210286,1781588516000,-10000.0,8e-05,2]
[425210289,1781588517000,-1416.872291,8.178e-05,2]
[425210290,1781588517000,-500.0,8.219e-05,2]
[425210288,1781588517000,-250.0,8.089e-05,2]
[425210293,1781588517000,-300.0,8.399e-05,2]
[425210292,1781588517000,-300.0,8.399e-05,2]
[425210291,1781588517000,-461.9793624,8.219e-05,2]
[425210294,1781588601000,7600.21206432,8.004e-05,2]
[425210295,1781588601000,3432.288,8.004e-05,2]
[425210298,1781588852000,-9512.04313238,8.004e-05,2]
[425210297,1781588852000,-150.0,8.004e-05,2]
[425210296,1781588852000,-337.95686762,8.003e-05,2]
[425210299,1781588853000,-10000.0,8.004e-05,2]
[425210300,1781588923000,-1433.6701692,8.004e-05,2]
[425210301,1781589014000,5102.80119574,0.000301,120]
[425210305,1781589031000,-420.80553141,8.995e-05,2]
[425210304,1781589031000,-971.85811083,8.895e-05,2]
[425210306,1781589031000,-623.0,9.123e-05,2]
[425210310,1781589031000,-4992.71,9.418e-05,2]
[425210307,1781589031000,-162.54,9.325e-05,2]
[425210308,1781589031000,-1000.0,9.338e-05,2]
[425210303,1781589031000,-345.38191605,8.895e-05,2]
[425210313,1781589031000,-167.68,9.501e-05,2]
[425210312,1781589031000,-2397.95722788,9.501e-05,2]
[425210314,1781589031000,-1063.1931,9.595e-05,2]
[425210309,1781589031000,-875.76,9.343e-05,2]
[425210311,1781589031000,-2597.89877212,9.501e-05,2]
[425210315,1781589031000,-1406.6939,9.595e-05,2]
[425210317,1781589031000,-61.02140773,9.595e-05,2]
[425210318,1781589031000,-10429.40284968,9.595e-05,2]
[425210319,1781589031000,-2329.44792748,9.595e-05,2]
[425210316,1781589031000,-2438.97859227,9.595e-05,2]
[425210330,1781589032000,8566.3298308,8.003e-05,2]
[425210322,1781589032000,-603.84235597,9.595e-05,2]
[425210321,1781589032000,-327.86973261,9.595e-05,2]
[425210320,1781589032000,-1447.85461755,9.595e-05,2]
[425210365,1781589038000,-151.0,0.00010996,2]
[425210364,1781589038000,-275555.4997349,0.00010996,2]
[425210368,1781589038000,-151.0,0.00010996,2]
[425210367,1781589038000,-151.0,0.00010996,2]
[425210360,1781589038000,-936.39310523,0.00010934,2]
[425210359,1781589038000,-936.39310525,0.000109,2]
[425210357,1781589038000,-552.882121,0.00010896,2]
[425210358,1781589038000,-2300.0,0.000109,3]
[425210369,1781589038000,-151.250647,0.00010996,2]
[425210363,1781589038000,-249.1,0.00010989,2]
[425210375,1781589038000,-155.48772445,0.00011084,2]
[425210371,1781589038000,-162.379773,0.00010996,2]
[425210370,1781589038000,-151.0,0.00010996,2]
[425210373,1781589038000,-151.0,0.00010996,2]
[425210366,1781589038000,-151.0,0.00010996,2]
[425210356,1781589038000,-1700.0,0.000108,3]